[Event "MČR v rapid šachu družstev 2019"]
[Site "Teplice, Czech Republic"]
[Date "2019.09.15"]
[Round "4.27"]
[White "Hosnedl, Matyas"]
[Black "Chmel, Kristian"]
[Result "1-0"]
[TimeControl "15 min. + 5s"]
[WhiteElo "1858"]
[BlackElo "2129"]

1. e4 {[%clk 00:15:08]} {[%emt 00:00:02]} e5 {[%clk 00:15:09]} {[%emt
00:00:02]} 2. Nf3 {[%clk 00:15:11]} {[%emt 00:00:01]} Nc6 {[%clk 00:15:13]}
{[%emt 00:00:02]} 3. Bb5 {[%clk 00:15:15]} {[%emt 00:00:01]} f5 {[%clk
00:15:15]} {[%emt 00:00:02]} 4. Bxc6 {[%clk 00:15:03]} {[%emt 00:00:18]} bxc6
{[%clk 00:12:11]} {[%emt 00:03:09]} 5. Nxe5 {[%clk 00:15:04]} {[%emt 00:00:03]}
Qf6 {[%clk 00:08:01]} {[%emt 00:04:15]} 6. d4 {[%clk 00:14:43]} {[%emt
00:00:27]} fxe4 {[%clk 00:06:41]} {[%emt 00:01:25]} 7. Nc3 {[%clk 00:14:42]}
{[%emt 00:00:06]} d5 {[%clk 00:06:25]} {[%emt 00:00:21]} 8. O-O {[%clk
00:14:34]} {[%emt 00:00:13]} Ba6 {[%clk 00:04:40]} {[%emt 00:01:50]} 9. Re1
{[%clk 00:14:24]} {[%emt 00:00:15]} Nh6 {[%clk 00:04:36]} {[%emt 00:00:09]} 10.
f3 {[%clk 00:14:20]} {[%emt 00:00:09]} Bd6 {[%clk 00:03:39]} {[%emt 00:01:01]}
11. fxe4 {[%clk 00:12:56]} {[%emt 00:01:30]} O-O {[%clk 00:03:18]} {[%emt
00:00:26]} 12. Be3 {[%clk 00:12:59]} {[%emt 00:00:02]} Qh4 {[%clk 00:02:33]}
{[%emt 00:00:49]} 13. exd5 {[%clk 00:12:35]} {[%emt 00:00:30]} Bxe5 {[%clk
00:02:04]} {[%emt 00:00:34]} 14. dxe5 {[%clk 00:09:36]} {[%emt 00:03:04]} Ng4
{[%clk 00:02:07]} {[%emt 00:00:01]} 15. h3 {[%clk 00:09:23]} {[%emt 00:00:18]}
Nxe3 {[%clk 00:02:10]} {[%emt 00:00:03]} 16. Qd2 {[%clk 00:09:27]} Nxd5 {[%clk
00:01:40]} {[%emt 00:00:36]} 17. Nxd5 {[%clk 00:09:30]} {[%emt 00:00:02]} cxd5
{[%clk 00:01:44]} 18. Qxd5+ {[%clk 00:09:25]} {[%emt 00:00:10]} Kh8 {[%clk
00:01:47]} {[%emt 00:00:01]} 19. e6 {[%clk 00:09:08]} {[%emt 00:00:22]} Qf2+
{[%clk 00:01:24]} {[%emt 00:00:28]} 20. Kh1 {[%clk 00:09:12]} {[%emt 00:00:02]}
Rab8 {[%clk 00:01:15]} {[%emt 00:00:14]} 21. Rad1 {[%clk 00:08:30]} {[%emt
00:00:47]} Bb7 {[%clk 00:01:12]} {[%emt 00:00:08]} 22. Qg5 {[%clk 00:08:33]} h6
{[%clk 00:00:36]} {[%emt 00:00:41]} 23. Qg6 {[%clk 00:08:22]} {[%emt 00:00:16]}
Rf6 {[%clk 00:00:24]} {[%emt 00:00:17]} 24. Qg4 {[%clk 00:08:11]} {[%emt
00:00:16]} Re8 {[%clk 00:00:11]} {[%emt 00:00:18]} 25. e7 {[%clk 00:07:32]}
{[%emt 00:00:45]} Kh7 {[%clk 00:00:07]} {[%emt 00:00:09]} 26. Re2 {[%clk
00:07:02]} {[%emt 00:00:35]} Qf5 {[%clk 00:00:06]} {[%emt 00:00:06]} 27. Qa4
{[%clk 00:06:12]} {[%emt 00:00:54]} Bc6 {[%clk 00:00:09]} {[%emt 00:00:02]} 28.
Qxa7 {[%clk 00:05:26]} {[%emt 00:00:51]} Rg6 {[%clk 00:00:13]} {[%emt
00:00:01]} 29. Qe3 {[%clk 00:04:59]} {[%emt 00:00:32]} Qg5 {[%clk 00:00:07]}
{[%emt 00:00:11]} 30. Qxg5 {[%clk 00:04:55]} {[%emt 00:00:09]} Rxg5 {[%clk
00:00:12]} {[%emt 00:00:01]} 31. Re6 {[%clk 00:04:38]} {[%emt 00:00:22]} Bxg2+
{[%clk 00:00:13]} {[%emt 00:00:04]} 32. Kh2 {[%clk 00:04:42]} Bd5 {[%clk
00:00:15]} {[%emt 00:00:04]} 33. Re2 {[%clk 00:04:31]} {[%emt 00:00:15]} Bf3
{[%clk 00:00:16]} {[%emt 00:00:05]} 34. Rd8 {[%clk 00:04:31]} {[%emt 00:00:05]}
Bh5 {[%clk 00:00:11]} {[%emt 00:00:10]} 35. Re3 {[%clk 00:04:21]} {[%emt
00:00:14]} Rf5 {[%clk 00:00:14]} {[%emt 00:00:03]} 36. Kg3 {[%clk 00:04:20]}
{[%emt 00:00:05]} Rb5 {[%clk 00:00:09]} {[%emt 00:00:10]} 37. b3 {[%clk
00:04:05]} {[%emt 00:00:21]} Rb8 {[%clk 00:00:10]} {[%emt 00:00:04]} 38. Red3
{[%clk 00:03:58]} {[%emt 00:00:12]} Rb5 {[%clk 00:00:06]} {[%emt 00:00:08]} 39.
Rxe8 {[%clk 00:03:58]} {[%emt 00:00:06]} Bxe8 {[%clk 00:00:09]} {[%emt
00:00:02]} 40. Rd8 {[%clk 00:04:02]} Bg6 {[%clk 00:00:06]} {[%emt 00:00:08]} 41.
e8=Q {[%clk 00:04:06]} {[%emt 00:00:02]} Bxe8 {[%clk 00:00:10]} {[%emt
00:00:01]} 42. Rxe8 {[%clk 00:04:10]} {[%emt 00:00:01]} Kg6 {[%clk 00:00:12]}
{[%emt 00:00:03]} 43. Re4 {[%clk 00:04:03]} {[%emt 00:00:11]} Kf6 {[%clk
00:00:11]} {[%emt 00:00:07]} 44. a4 {[%clk 00:03:55]} {[%emt 00:00:13]} Rd5
{[%clk 00:00:14]} {[%emt 00:00:01]} 45. b4 {[%clk 00:03:50]} {[%emt 00:00:11]}
g5 {[%clk 00:00:16]} {[%emt 00:00:03]} 46. Rc4 {[%clk 00:03:44]} {[%emt
00:00:10]} h5 {[%clk 00:00:13]} {[%emt 00:00:09]} 47. a5 {[%clk 00:03:26]}
{[%emt 00:00:23]} h4+ {[%clk 00:00:10]} {[%emt 00:00:07]} 48. Kg4 {[%clk
00:03:27]} {[%emt 00:00:03]} Rd6 {[%clk 00:00:07]} {[%emt 00:00:11]} 49. c3
{[%clk 00:03:21]} {[%emt 00:00:10]} Kg6 {[%clk 00:00:07]} {[%emt 00:00:05]} 50.
Rc5 {[%clk 00:03:16]} {[%emt 00:00:09]} Rd3 {[%clk 00:00:07]} {[%emt 00:00:05]}
51. Rc6+ {[%clk 00:03:16]} {[%emt 00:00:06]} Kf7 {[%clk 00:00:10]} {[%emt
00:00:02]} 52. Rxc7+ {[%clk 00:03:20]} {[%emt 00:00:02]} Ke6 {[%clk 00:00:13]}
{[%emt 00:00:01]} 53. Kxg5 {[%clk 00:02:58]} {[%emt 00:00:26]} Rxh3 {[%clk
00:00:16]} {[%emt 00:00:02]} 54. a6 {[%clk 00:02:59]} {[%emt 00:00:04]} Rh1
{[%clk 00:00:20]} {[%emt 00:00:01]} 55. a7 {[%clk 00:02:59]} {[%emt 00:00:06]}
Ra1 {[%clk 00:00:23]} 56. Kxh4 {[%clk 00:03:03]} {[%emt 00:00:01]} Kd6 {[%clk
00:00:28]} 57. Rc5 {[%clk 00:02:53]} {[%emt 00:00:15]} Rxa7 {[%clk 00:00:30]}
{[%emt 00:00:03]} 58. Kg4 {[%clk 00:02:55]} {[%emt 00:00:03]} Rf7 {[%clk
00:00:33]} {[%emt 00:00:02]} 59. c4 {[%clk 00:02:50]} {[%emt 00:00:09]} Rf1
{[%clk 00:00:17]} {[%emt 00:00:21]} 60. Rd5+ {[%clk 00:02:31]} {[%emt
00:00:24]} Kc7 {[%clk 00:00:21]} {[%emt 00:00:02]} 61. b5 {[%clk 00:02:25]}
{[%emt 00:00:11]} Rc1 {[%clk 00:00:24]} {[%emt 00:00:02]} 62. Rc5+ {[%clk
00:02:27]} {[%emt 00:00:02]} Kb6 {[%clk 00:00:06]} {[%emt 00:00:23]} 63. Rc6+
{[%clk 00:02:30]} {[%emt 00:00:02]} Kb7 {[%clk 00:00:11]} 64. Kf5 {[%clk
00:02:30]} {[%emt 00:00:04]} Re1 {[%clk 00:00:14]} {[%emt 00:00:02]} 65. Re6
{[%clk 00:02:32]} {[%emt 00:00:04]} Rc1 {[%clk 00:00:16]} {[%emt 00:00:03]} 66.
Re4 {[%clk 00:02:35]} {[%emt 00:00:01]} Kb6 {[%clk 00:00:18]} {[%emt 00:00:03]}
67. Ke5 {[%clk 00:02:36]} {[%emt 00:00:04]} Rd1 {[%clk 00:00:22]} {[%emt
00:00:02]} 68. Rd4 {[%clk 00:02:35]} {[%emt 00:00:06]} Re1+ {[%clk 00:00:21]}
{[%emt 00:00:06]} 69. Kd6 {[%clk 00:02:33]} {[%emt 00:00:06]} Rh1 {[%clk
00:00:23]} {[%emt 00:00:04]} 70. Rd3 {[%clk 00:01:40]} {[%emt 00:00:57]} Rh6
{[%clk 00:00:21]} {[%emt 00:00:07]} 71. Kd5 {[%clk 00:01:43]} {[%emt 00:00:02]}
Rh5+ {[%clk 00:00:20]} {[%emt 00:00:06]} 72. Kd4 {[%clk 00:01:47]} Rh1 {[%clk
00:00:16]} {[%emt 00:00:09]} 73. Kc3 {[%clk 00:01:45]} {[%emt 00:00:08]} Rc1+
{[%clk 00:00:13]} {[%emt 00:00:07]} 74. Kb4 {[%clk 00:01:48]} {[%emt 00:00:03]}
Rb1+ {[%clk 00:00:11]} {[%emt 00:00:07]} 75. Rb3 {[%clk 00:01:52]} Rc1 {[%clk
00:00:14]} {[%emt 00:00:03]} 76. Rb2 {[%clk 00:01:51]} {[%emt 00:00:05]} Rh1
{[%clk 00:00:08]} {[%emt 00:00:11]} 77. c5+ {[%clk 00:01:53]} {[%emt 00:00:03]}
Kc7 {[%clk 00:00:12]} {[%emt 00:00:01]} 78. Rg2 {[%clk 00:01:47]} {[%emt
00:00:10]} Rb1+ {[%clk 00:00:14]} {[%emt 00:00:04]} 79. Kc4 {[%clk 00:01:49]}
{[%emt 00:00:04]} Rc1+ {[%clk 00:00:17]} {[%emt 00:00:02]} 80. Kd4 {[%clk
00:01:52]} {[%emt 00:00:01]} Rd1+ {[%clk 00:00:21]} {[%emt 00:00:02]} 81. Kc3
{[%clk 00:01:54]} {[%emt 00:00:02]} Rc1+ {[%clk 00:00:22]} {[%emt 00:00:04]} 82.
Rc2 {[%clk 00:01:57]} {[%emt 00:00:02]} Rh1 {[%clk 00:00:26]} {[%emt 00:00:02]}
83. b6+ {[%clk 00:01:50]} {[%emt 00:00:12]} Kc6 {[%clk 00:00:29]} {[%emt
00:00:02]} 84. Kb4 {[%clk 00:01:46]} {[%emt 00:00:09]} Rh4+ {[%clk 00:00:15]}
{[%emt 00:00:19]} 85. Rc4 {[%clk 00:01:47]} {[%emt 00:00:04]} Rh1 {[%clk
00:00:19]} {[%emt 00:00:01]} 86. Rc3 {[%clk 00:01:21]} {[%emt 00:00:31]} Rh4+
{[%clk 00:00:20]} {[%emt 00:00:04]} 87. Ka5 {[%clk 00:01:23]} {[%emt 00:00:01]}
Rh1 {[%clk 00:00:13]} {[%emt 00:00:13]} 88. Rc4 {[%clk 00:00:56]} {[%emt
00:00:32]} Ra1+ {[%clk 00:00:07]} {[%emt 00:00:11]} 89. Ra4 {[%clk 00:01:01]}
Rc1 {[%clk 00:00:08]} {[%emt 00:00:04]} 90. Ka6 {[%clk 00:01:00]} {[%emt
00:00:06]} Rb1 {[%clk 00:00:06]} {[%emt 00:00:07]} 91. Ka7 {[%clk 00:00:55]}
{[%emt 00:00:09]} Rh1 {[%clk 00:00:07]} {[%emt 00:00:05]} 92. b7 {[%clk
00:00:48]} {[%emt 00:00:12]} Rh7 {[%clk 00:00:10]} {[%emt 00:00:01]} 93. Rb4
{[%clk 00:00:52]} {[%emt 00:00:01]} Kxc5 {[%clk 00:00:13]} {[%emt 00:00:03]} 94.
Rb2 {[%clk 00:00:46]} {[%emt 00:00:10]} Kc6 {[%clk 00:00:06]} {[%emt 00:00:12]}
95. Ka8 {[%clk 00:00:48]} {[%emt 00:00:03]} Rh1 {[%clk 00:00:08]} {[%emt
00:00:03]} 96. Ra2 {[%emt 00:00:09]} 1-0

[Event "MČR v rapid šachu družstev 2019"]
[Site "Teplice, Czech Republic"]
[Date "2019.09.15"]
[Round "5.1"]
[White "Bernasek, Jan"]
[Black "Stocek, Jiri"]
[Result "0-1"]
[TimeControl "15 min. + 5s"]
[WhiteElo "2496"]
[BlackElo "2507"]

1. Nf3 {[%clk 00:15:07]} {[%emt 00:00:02]} Nf6 {[%clk 00:15:06]} {[%emt
00:00:04]} 2. e3 {[%clk 00:15:11]} {[%emt 00:00:02]} b6 {[%clk 00:15:00]}
{[%emt 00:00:10]} 3. b3 {[%clk 00:15:12]} {[%emt 00:00:05]} g6 {[%clk
00:14:55]} {[%emt 00:00:09]} 4. Bb2 {[%clk 00:15:16]} {[%emt 00:00:03]} Bg7
{[%clk 00:14:59]} 5. c4 {[%clk 00:15:14]} {[%emt 00:00:07]} Bb7 {[%clk
00:15:01]} {[%emt 00:00:02]} 6. Be2 {[%clk 00:15:17]} {[%emt 00:00:02]} O-O
{[%clk 00:15:01]} {[%emt 00:00:05]} 7. O-O {[%clk 00:15:20]} {[%emt 00:00:02]}
d6 {[%clk 00:14:54]} {[%emt 00:00:12]} 8. d4 {[%clk 00:15:22]} {[%emt
00:00:03]} Nbd7 {[%clk 00:14:51]} {[%emt 00:00:08]} 9. Nc3 {[%clk 00:15:04]}
{[%emt 00:00:23]} Ne4 {[%clk 00:14:43]} {[%emt 00:00:13]} 10. Nxe4 {[%clk
00:14:58]} {[%emt 00:00:11]} Bxe4 {[%clk 00:14:46]} {[%emt 00:00:02]} 11. Nd2
{[%clk 00:15:00]} {[%emt 00:00:04]} Bb7 {[%clk 00:14:48]} {[%emt 00:00:03]} 12.
Qc2 {[%clk 00:14:56]} {[%emt 00:00:09]} e5 {[%clk 00:13:58]} {[%emt 00:00:55]}
13. Bf3 {[%clk 00:14:53]} {[%emt 00:00:09]} Qc8 {[%clk 00:12:57]} {[%emt
00:01:06]} 14. Bxb7 {[%clk 00:14:33]} {[%emt 00:00:25]} Qxb7 {[%clk 00:13:00]}
{[%emt 00:00:02]} 15. d5 {[%clk 00:14:36]} {[%emt 00:00:01]} b5 {[%clk
00:12:50]} {[%emt 00:00:15]} 16. cxb5 {[%clk 00:14:19]} {[%emt 00:00:22]} Qxd5
{[%clk 00:12:25]} {[%emt 00:00:30]} 17. a4 {[%clk 00:14:10]} {[%emt 00:00:14]}
a6 {[%clk 00:11:51]} {[%emt 00:00:39]} 18. bxa6 {[%clk 00:13:36]} {[%emt
00:00:38]} Rxa6 {[%clk 00:11:30]} {[%emt 00:00:27]} 19. b4 {[%clk 00:12:28]}
{[%emt 00:01:14]} Rc6 {[%clk 00:11:18]} {[%emt 00:00:16]} 20. Qd1 {[%clk
00:12:24]} {[%emt 00:00:09]} Ra8 {[%clk 00:09:55]} {[%emt 00:01:28]} 21. b5
{[%clk 00:11:30]} {[%emt 00:00:59]} Rb6 {[%clk 00:09:00]} {[%emt 00:01:00]} 22.
Nb3 {[%clk 00:11:00]} {[%emt 00:00:35]} Qc4 {[%clk 00:08:20]} {[%emt 00:00:43]}
23. Nd2 {[%clk 00:08:09]} {[%emt 00:02:58]} Qb4 {[%clk 00:07:24]} {[%emt
00:00:59]} 24. Qc2 {[%clk 00:06:28]} {[%emt 00:01:49]} d5 {[%clk 00:07:24]}
{[%emt 00:00:04]} 25. Ba3 {[%clk 00:05:37]} {[%emt 00:00:57]} Qxa4 {[%clk
00:07:08]} {[%emt 00:00:21]} 26. Qxc7 {[%clk 00:05:36]} {[%emt 00:00:05]} Qxb5
{[%clk 00:06:07]} {[%emt 00:01:06]} 27. Be7 {[%clk 00:03:42]} {[%emt 00:01:59]}
Rxa1 {[%clk 00:05:57]} {[%emt 00:00:15]} 28. Rxa1 {[%clk 00:03:45]} {[%emt
00:00:02]} Bf8 {[%clk 00:02:47]} {[%emt 00:03:15]} 29. Bxf8 {[%clk 00:02:54]}
{[%emt 00:00:56]} Kxf8 {[%clk 00:02:43]} {[%emt 00:00:09]} 30. h4 {[%clk
00:02:40]} {[%emt 00:00:19]} Ke7 {[%clk 00:01:53]} {[%emt 00:00:53]} 31. Nf3
{[%clk 00:01:45]} {[%emt 00:01:02]} f6 {[%clk 00:01:54]} {[%emt 00:00:04]} 32.
h5 {[%clk 00:01:37]} {[%emt 00:00:13]} Qc5 {[%clk 00:01:38]} {[%emt 00:00:21]}
33. Qa7 {[%clk 00:01:25]} {[%emt 00:00:17]} Rb1+ {[%clk 00:01:37]} {[%emt
00:00:06]} 34. Kh2 {[%clk 00:01:29]} {[%emt 00:00:01]} Qxa7 {[%clk 00:01:27]}
{[%emt 00:00:16]} 35. Rxa7 {[%clk 00:01:33]} {[%emt 00:00:01]} Rb2 {[%clk
00:01:25]} {[%emt 00:00:06]} 36. Kg3 {[%clk 00:01:24]} {[%emt 00:00:14]} g5
{[%clk 00:01:21]} {[%emt 00:00:09]} 37. Nh2 {[%clk 00:01:16]} {[%emt 00:00:14]}
Ke6 {[%clk 00:01:17]} {[%emt 00:00:08]} 38. Ng4 {[%clk 00:01:14]} {[%emt
00:00:07]} f5 {[%clk 00:01:14]} {[%emt 00:00:08]} 39. Nh6 {[%clk 00:01:17]}
{[%emt 00:00:02]} f4+ {[%clk 00:01:06]} {[%emt 00:00:14]} 40. exf4 {[%clk
00:01:16]} {[%emt 00:00:06]} gxf4+ {[%clk 00:01:06]} {[%emt 00:00:05]} 41. Kf3
{[%clk 00:01:15]} {[%emt 00:00:06]} Rb6 {[%clk 00:00:56]} {[%emt 00:00:15]} 42.
g4 {[%clk 00:01:13]} {[%emt 00:00:07]} fxg3 {[%clk 00:00:55]} {[%emt 00:00:06]}
43. fxg3 {[%clk 00:01:15]} {[%emt 00:00:04]} Nf6 {[%clk 00:00:51]} {[%emt
00:00:07]} 44. g4 {[%clk 00:01:18]} {[%emt 00:00:03]} Rb3+ {[%clk 00:00:47]}
{[%emt 00:00:09]} 45. Kg2 {[%clk 00:01:23]} Rb2+ {[%clk 00:00:41]} {[%emt
00:00:12]} 46. Kh3 {[%clk 00:01:22]} {[%emt 00:00:05]} Ne4 {[%clk 00:00:34]}
{[%emt 00:00:11]} 47. Ra6+ {[%clk 00:01:23]} {[%emt 00:00:05]} Kd7 {[%clk
00:00:34]} {[%emt 00:00:04]} 48. Nf5 {[%clk 00:01:15]} {[%emt 00:00:14]} d4
{[%clk 00:00:35]} {[%emt 00:00:04]} 49. Ra5 {[%clk 00:00:54]} {[%emt 00:00:26]}
Ke6 {[%clk 00:00:29]} {[%emt 00:00:11]} 50. Ra6+ {[%clk 00:00:57]} {[%emt
00:00:01]} Kd5 {[%clk 00:00:31]} {[%emt 00:00:02]} 51. Ra5+ {[%clk 00:00:54]}
{[%emt 00:00:09]} Nc5 {[%clk 00:00:35]} {[%emt 00:00:01]} 52. Ne7+ {[%clk
00:00:40]} {[%emt 00:00:18]} Kc4 {[%clk 00:00:35]} {[%emt 00:00:03]} 53. Nc6
{[%clk 00:00:44]} {[%emt 00:00:03]} e4 {[%clk 00:00:33]} {[%emt 00:00:07]} 54.
g5 {[%clk 00:00:29]} {[%emt 00:00:20]} d3 {[%clk 00:00:32]} {[%emt 00:00:06]}
55. g6 {[%clk 00:00:32]} {[%emt 00:00:02]} hxg6 {[%clk 00:00:35]} {[%emt
00:00:02]} 56. hxg6 {[%clk 00:00:37]} d2 {[%clk 00:00:35]} {[%emt 00:00:05]} 57.
g7 {[%clk 00:00:38]} {[%emt 00:00:03]} d1=Q {[%clk 00:00:36]} {[%emt 00:00:04]}
58. g8=Q+ {[%clk 00:00:41]} {[%emt 00:00:03]} Kc3 {[%clk 00:00:37]} {[%emt
00:00:03]} 59. Ra3+ {[%clk 00:00:39]} {[%emt 00:00:08]} Rb3 {[%clk 00:00:39]}
{[%emt 00:00:03]} 60. Rxb3+ {[%clk 00:00:36]} {[%emt 00:00:09]} Qxb3 {[%clk
00:00:37]} {[%emt 00:00:07]} 61. Qxb3+ {[%clk 00:00:31]} {[%emt 00:00:10]} Nxb3
{[%clk 00:00:40]} {[%emt 00:00:01]} 62. Kg3 {[%clk 00:00:35]} e3 {[%clk
00:00:35]} {[%emt 00:00:11]} 63. Ne5 {[%clk 00:00:25]} {[%emt 00:00:15]} Nd4
{[%clk 00:00:37]} {[%emt 00:00:02]} 64. Kg2 {[%clk 00:00:11]} {[%emt 00:00:19]}
Kc2 {[%clk 00:00:23]} {[%emt 00:00:20]} 65. Kf1 {[%clk 00:00:10]} {[%emt
00:00:06]} Kd1 {[%clk 00:00:25]} {[%emt 00:00:02]} 66. Nd3 {[%clk 00:00:08]}
{[%emt 00:00:08]} e2 {[%clk 00:00:22]} {[%emt 00:00:08]} 67. Kf2 {[%clk
00:00:12]} {[%emt 00:00:01]} Kd2 {[%clk 00:00:26]} 68. Ne1 {[%clk 00:00:16]}
{[%emt 00:00:01]} Ne6 {[%clk 00:00:21]} {[%emt 00:00:10]} 69. Nf3+ {[%clk
00:00:16]} {[%emt 00:00:05]} Kd1 {[%clk 00:00:25]} {[%emt 00:00:02]} 70. Ne1
{[%clk 00:00:14]} {[%emt 00:00:06]} Nf4 {[%clk 00:00:26]} {[%emt 00:00:04]} 71.
Nf3 {[%clk 00:00:17]} {[%emt 00:00:02]} Nd3+ {[%clk 00:00:30]} {[%emt
00:00:01]} 72. Ke3 {[%clk 00:00:07]} {[%emt 00:00:15]} Ne1 {[%clk 00:00:24]}
{[%emt 00:00:09]} 73. Ng1 {[%clk 00:00:00]} {[%emt 00:00:09]} Nc2+ {[%clk
00:00:24]} {[%emt 00:00:02]} 74. Kd4 {[%emt 00:00:06]} 0-1

[Event "MČR v rapid šachu družstev 2019"]
[Site "Teplice, Czech Republic"]
[Date "2019.09.15"]
[Round "5.2"]
[White "Kociscak, Jiri"]
[Black "Cernousek, Lukas"]
[Result "1-0"]
[TimeControl "15 min. + 5s"]
[WhiteElo "2410"]
[BlackElo "2478"]

1. d4 {[%clk 00:15:07]} {[%emt 00:00:02]} Nf6 {[%clk 00:15:09]} {[%emt
00:00:02]} 2. c4 {[%clk 00:15:09]} {[%emt 00:00:03]} c5 {[%clk 00:15:13]}
{[%emt 00:00:03]} 3. d5 {[%clk 00:15:12]} g6 {[%clk 00:15:16]} {[%emt
00:00:01]} 4. Nc3 {[%clk 00:15:15]} {[%emt 00:00:02]} d6 {[%clk 00:15:19]}
{[%emt 00:00:03]} 5. e4 {[%emt 00:00:02]} Bg7 {[%emt 00:00:01]} 6. h3 {[%clk
00:15:09]} {[%emt 00:00:13]} O-O {[%clk 00:15:26]} {[%emt 00:00:04]} 7. Nf3
{[%clk 00:15:13]} e6 {[%clk 00:15:24]} {[%emt 00:00:07]} 8. Bd3 {[%clk
00:15:16]} {[%emt 00:00:01]} Na6 {[%clk 00:15:27]} {[%emt 00:00:02]} 9. O-O
{[%clk 00:15:16]} {[%emt 00:00:05]} Nc7 {[%clk 00:15:31]} {[%emt 00:00:01]} 10.
a4 {[%clk 00:13:55]} {[%emt 00:01:26]} e5 {[%clk 00:15:34]} {[%emt 00:00:02]}
11. Ne1 {[%clk 00:13:17]} {[%emt 00:00:43]} Na6 {[%clk 00:15:28]} {[%emt
00:00:12]} 12. f4 {[%clk 00:13:15]} {[%emt 00:00:07]} exf4 {[%clk 00:15:17]}
{[%emt 00:00:16]} 13. Bxf4 {[%clk 00:13:19]} {[%emt 00:00:01]} Nh5 {[%clk
00:14:06]} {[%emt 00:01:16]} 14. Bh2 {[%clk 00:13:22]} {[%emt 00:00:02]} Bd4+
{[%clk 00:14:04]} {[%emt 00:00:07]} 15. Kh1 {[%clk 00:13:26]} {[%emt 00:00:01]}
Be5 {[%clk 00:14:08]} {[%emt 00:00:01]} 16. Nf3 {[%clk 00:13:01]} {[%emt
00:00:30]} Ng3+ {[%clk 00:12:07]} {[%emt 00:02:07]} 17. Bxg3 {[%clk 00:13:03]}
{[%emt 00:00:02]} Bxg3 {[%clk 00:12:11]} {[%emt 00:00:01]} 18. Ne2 {[%clk
00:13:07]} {[%emt 00:00:01]} Bh4 {[%clk 00:12:15]} 19. Nxh4 {[%clk 00:12:28]}
{[%emt 00:00:45]} Qxh4 {[%clk 00:12:19]} 20. Rf4 {[%clk 00:12:31]} {[%emt
00:00:01]} Qh5 {[%clk 00:11:39]} {[%emt 00:00:45]} 21. Nc3 {[%clk 00:12:07]}
{[%emt 00:00:29]} Qe5 {[%clk 00:11:35]} {[%emt 00:00:09]} 22. Qf3 {[%clk
00:12:11]} Nb4 {[%clk 00:11:39]} {[%emt 00:00:02]} 23. Rf1 {[%clk 00:12:15]}
{[%emt 00:00:01]} f5 {[%clk 00:10:02]} {[%emt 00:01:41]} 24. Bb1 {[%clk
00:08:50]} {[%emt 00:03:29]} g5 {[%clk 00:10:03]} {[%emt 00:00:05]} 25. Rxf5
{[%clk 00:08:54]} {[%emt 00:00:01]} Bxf5 {[%clk 00:09:59]} {[%emt 00:00:09]} 26.
exf5 {[%clk 00:08:58]} {[%emt 00:00:01]} Rae8 {[%clk 00:08:09]} {[%emt
00:01:54]} 27. Ne4 {[%clk 00:06:51]} {[%emt 00:02:12]} Qxb2 {[%clk 00:02:02]}
{[%emt 00:06:13]} 28. f6 {[%clk 00:06:06]} {[%emt 00:00:50]} Kh8 {[%clk
00:01:22]} {[%emt 00:00:45]} 29. Qh5 {[%clk 00:05:32]} {[%emt 00:00:39]} Re7
{[%clk 00:00:23]} {[%emt 00:01:05]} 30. fxe7 {[%clk 00:03:06]} {[%emt
00:02:30]} Rxf1+ {[%clk 00:00:26]} {[%emt 00:00:02]} 31. Kh2 {[%clk 00:03:11]}
Qe5+ {[%clk 00:00:28]} {[%emt 00:00:02]} 32. Ng3 {[%clk 00:03:15]} {[%emt
00:00:01]} Qxe7 {[%clk 00:00:07]} {[%emt 00:00:27]} 33. Nxf1 {[%clk 00:03:18]}
1-0